bitfinex-derivatives/quotes_ETHF0:USTF0_20250929
["timestamp","ask_amount","ask_price","bid_price","bid_amount"]
[1759138016481,1.20174907,4135.0,4134.9,0.9845]
[1759138016677,6.70333907,4135.0,4134.8,0.43521]
[1759138016986,1.19231884,4134.9,4134.8,0.43521]
[1759138017278,1.19231884,4134.9,4134.8,0.77171]
[1759138017782,1.19231884,4134.9,4134.8,0.99421]
[1759138018278,0.90221884,4134.9,4134.8,1.21041]
[1759138019176,0.47601884,4134.9,4134.8,1.21041]
[1759138020578,0.47601884,4134.9,4134.8,6.45641]
[1759138022481,2.3e-07,4135.0,4134.9,1.2104]
[1759138022672,1.93277914,4136.3,4134.9,1.2104]
[1759138022673,3.2078,4136.5,4135.5,0.4687]
[1759138022983,3.7275,4136.5,4136.4,1.21024]
[1759138023182,3.9485,4136.5,4136.4,1.21024]
[1759138023778,3.95164007,4136.5,4136.4,1.21316312]
[1759138024283,3.95164007,4136.5,4136.4,0.43796312]
[1759138024284,4.07654007,4136.5,4136.4,0.43796312]
[1759138024480,4.07654007,4136.5,4136.4,0.22542312]
[1759138025083,4.32454007,4136.5,4136.4,0.77812312]
[1759138025383,4.32454007,4136.5,4136.4,0.00292312]
[1759138025778,4.07654007,4136.5,4136.4,0.77812312]
[1759138025980,3.73064007,4136.5,4136.4,0.77812312]
[1759138026174,3.95164007,4136.5,4136.4,0.77812312]
[1759138026373,4.07654007,4136.5,4136.4,0.00292312]
[1759138027888,9.07654007,4136.5,4136.4,0.00292312]
[1759138029590,9.32454007,4136.5,4136.4,0.00292312]
[1759138030189,9.75957007,4136.5,4136.4,0.00292312]
[1759138030386,4.75957007,4136.5,4136.4,0.22542312]
[1759138030687,4.75957007,4136.5,4136.4,0.43796312]
[1759138031082,4.51157007,4136.5,4136.4,0.00292312]
[1759138031284,4.75957007,4136.5,4136.4,0.00292312]
[1759138031591,4.07654007,4136.5,4136.4,0.43796312]
[1759138031785,4.32454007,4136.5,4136.4,0.43796312]
[1759138032790,4.07654007,4136.5,4136.4,0.43796312]
[1759138033187,4.32454007,4136.5,4136.4,0.43796312]
[1759138033792,4.32454007,4136.5,4136.4,0.66046312]
[1759138034390,4.32354007,4136.5,4136.4,0.66046312]
[1759138035194,4.75857007,4136.5,4136.4,0.66046312]
[1759138035592,0.00314007,4136.5,4136.4,1.18226312]
[1759138035990,1.15184007,4136.5,4136.4,0.43796312]
[1759138036295,0.76944007,4136.5,4136.4,1.18026312]
[1759138036487,0.00314007,4136.5,4136.4,1.18026312]
[1759138037186,0.76944007,4136.5,4136.4,1.18026312]
[1759138037383,1.15284007,4136.5,4136.4,0.43796312]
[1759138037786,1.58787007,4136.5,4136.4,0.43796312]
[1759138037983,1.58787007,4136.5,4136.4,0.00292312]
[1759138038797,1.58787007,4136.5,4136.4,0.43796312]
[1759138039000,6.58787007,4136.5,4136.4,0.00292312]
[1759138039892,6.15284007,4136.5,4136.4,0.00292312]
[1759138040098,0.90384007,4136.5,4136.4,0.65846312]
[1759138040299,1.15284007,4136.5,4136.4,0.65846312]
[1759138040501,1.58787007,4136.5,4136.4,0.65846312]
[1759138040797,1.15284007,4136.5,4136.4,0.65846312]
[1759138040991,1.58787007,4136.5,4136.4,0.65846312]
[1759138041194,1.58787007,4136.5,4136.4,0.00292312]
[1759138041796,1.58787007,4136.5,4136.4,0.43796312]
[1759138043298,1.58787007,4136.5,4136.4,0.00292312]
[1759138043695,1.58787007,4136.5,4136.4,0.43796312]
[1759138043897,0.76944007,4136.5,4136.4,1.17986312]
[1759138044095,1.14864007,4136.5,4136.4,1.17986312]
[1759138044296,1.58367007,4136.5,4136.4,0.00292312]
[1759138044502,1.14864007,4136.5,4136.4,0.43796312]
[1759138044699,1.14864007,4136.5,4136.4,0.64346312]
[1759138044999,1.14864007,4136.5,4136.4,0.95506312]
[1759138045200,1.14864007,4136.5,4136.4,0.64346312]
[1759138046502,1.14864007,4136.5,4136.4,1.16486312]
[1759138048401,1.58367007,4136.5,4136.4,0.64346312]
[1759138048701,1.58367007,4136.5,4136.4,0.43796312]
[1759138049207,1.14864007,4136.5,4136.4,0.43796312]
[1759138049600,1.14864007,4136.5,4136.4,0.64346312]
[1759138050301,1.14864007,4136.5,4136.4,1.16486312]
[1759138050506,1.01844007,4136.5,4136.4,2.03292493]
[1759138050907,0.00314007,4136.5,4136.4,1.16486312]
[1759138051104,1.01654007,4136.5,4136.4,1.16486312]
[1759138051303,1.01654007,4136.5,4136.4,2.03373381]
[1759138052302,1.01654007,4136.5,4136.4,1.16486312]
[1759138053106,1.01654007,4136.5,4136.4,2.469852]
[1759138054112,0.55044007,4136.5,4136.4,2.469852]
[1759138054306,0.47514007,4136.5,4136.4,2.469852]
[1759138055013,0.25214007,4136.5,4136.4,2.469852]
[1759138055710,0.47514007,4136.5,4136.4,2.469852]
[1759138055910,0.79944007,4136.5,4136.4,2.469852]
[1759138056106,1.01654007,4136.5,4136.4,2.469852]
[1759138057317,1.01654007,4136.5,4136.4,1.16486312]
[1759138057614,1.01554007,4136.5,4136.4,1.16486312]
[1759138057816,0.76754007,4136.5,4136.4,1.16486312]
[1759138058022,0.79844007,4136.5,4136.4,1.16486312]
[1759138058723,0.47414007,4136.5,4136.4,2.469852]
[1759138060624,0.00314007,4136.5,4136.4,2.469852]
[1759138060923,0.00314007,4136.5,4136.4,1.16486312]
[1759138063415,0.76754007,4136.5,4136.4,2.46819158]
[1759138064014,0.00314007,4136.5,4136.4,2.46819158]
[1759138064220,0.00314007,4136.5,4136.4,1.16486312]
[1759138065926,0.55044007,4136.5,4136.4,1.16486312]
[1759138066424,0.00314007,4136.5,4136.4,1.16486312]
[1759138067828,0.22614007,4136.5,4136.4,1.16486312]
[1759138070030,0.00314007,4136.5,4136.4,1.16486312]
[1759138072331,0.55044007,4136.5,4136.4,1.16486312]
[1759138072532,0.22614007,4136.5,4136.4,1.16486312]
[1759138072829,0.00314007,4136.5,4136.4,1.16486312]
[1759138083338,0.00314007,4136.5,4136.4,2.90661439]
[1759138084338,0.00314007,4136.5,4136.4,6.11441439]
[1759138087133,0.00314007,4136.5,4136.4,4.37266312]
[1759138090939,0.01,4137.0,4136.9,0.43499]
[1759138091241,0.541,4137.0,4136.9,2.92030034]
[1759138091940,0.54356779,4137.0,4136.9,1.18049]
[1759138093239,0.76906779,4137.0,4136.9,1.18049]
[1759138093444,0.90456779,4137.0,4136.9,0.43499]
[1759138093840,0.90456779,4137.0,4136.9,0.99659]
[1759138095351,0.90456779,4137.0,4136.9,1.21549]
[1759138096050,0.76906779,4137.0,4136.9,1.21549]
[1759138096253,0.54356779,4137.0,4136.9,1.21549]
[1759138096445,0.76436779,4137.0,4136.9,1.21549]
[1759138100949,0.01256779,4137.0,4136.9,1.21549]
[1759138101145,0.01256779,4137.0,4136.9,2.95530034]
[1759138102351,0.01256779,4137.0,4136.9,6.16310034]
[1759138102848,0.52826779,4137.0,4136.9,6.16310034]
[1759138103050,0.52826779,4137.0,4136.9,4.42329]
[1759138105553,0.01256779,4137.0,4136.9,4.42329]
[1759138105954,0.31836779,4137.0,4136.9,4.42329]
[1759138106252,0.54266779,4137.0,4136.9,4.42329]
[1759138109744,0.01256779,4137.0,4136.9,4.42329]
[1759138110553,7.79e-06,4137.0,4136.9,4.66929]
[1759138111451,0.022,4137.9,4137.8,0.86359]
[1759138111660,0.022,4137.9,4137.8,3.17839239]
[1759138111848,0.022,4137.9,4137.8,1.44109]
[1759138112252,0.022,4137.9,4137.8,3.17694183]
[1759138112451,3.2078,4139.1,4139.0,0.4287]
[1759138112452,3.4321,4139.1,4139.0,0.4287]
[1759138112653,3.65035896,4139.1,4139.0,0.7602]
[1759138113152,3.95615896,4139.1,4139.0,0.7602]
[1759138114657,0.74835896,4139.1,4139.0,0.7602]
[1759138116950,0.00245896,4139.1,4139.0,0.889]
[1759138117148,0.53255896,4139.1,4139.0,1.0062]
[1759138118256,0.00245896,4139.1,4139.0,1.135]
[1759138118456,0.30825896,4139.1,4139.0,1.135]
[1759138118658,0.53255896,4139.1,4139.0,1.135]
[1759138118851,0.74835896,4139.1,4139.0,0.7602]
[1759138119058,0.74835896,4139.1,4139.0,1.19497]
[1759138119655,0.00245896,4139.1,4139.0,1.32377]
[1759138121157,0.22675896,4139.1,4139.0,1.32377]
[1759138121665,0.00245896,4139.1,4139.0,1.32377]
[1759138121957,0.53255896,4139.1,4139.0,1.32377]
[1759138122262,0.74835896,4139.1,4139.0,1.19497]
[1759138122464,0.74835896,4139.1,4139.0,0.65677]
[1759138122658,0.74835896,4139.1,4138.7,0.5775]
[1759138122659,0.43,4139.0,4138.5,0.86789632]
[1759138122964,0.8701,4138.5,4138.4,1.19503]
[1759138123466,0.4401,4138.2,4138.1,0.5535]
[1759138123765,0.7459,4138.2,4138.1,0.98836]
[1759138123958,0.7459,4138.2,4138.1,0.65686]
[1759138124963,0.7459,4138.2,4138.1,1.19506]
[1759138128556,0.7459,4138.2,4138.1,0.65686]
[1759138128757,0.4401,4138.0,4137.9,1.19508]
[1759138128966,0.7459,4138.0,4137.9,1.19508]
[1759138129865,0.2243,4138.0,4137.9,1.19508]
[1759138130466,0.5301,4138.0,4137.9,1.19508]
[1759138131559,0.7459,4138.0,4137.9,0.7602]
[1759138132059,0.5301,4137.6,4137.5,0.98842]
[1759138132361,0.7459,4137.6,4137.5,1.19512]
[1759138134360,0.7459,4137.6,4137.5,0.222]
[1759138134666,0.7459,4137.6,4137.5,0.65692]
[1759138134867,0.5301,4137.6,4137.5,1.32682]
[1759138137660,0.8867,4138.0,4137.9,1.19608]
[1759138138061,0.5531,4138.0,4137.9,1.19608]
[1759138138367,3.2078,4138.1,4137.6,1.08728]
[1759138138368,3.2078,4138.1,4138.0,1.32167]
[1759138138668,3.7609,4138.1,4138.0,1.32167]
[1759138139766,3.9703,4138.1,4138.0,1.19607]
[1759138140465,3.9703,4138.1,4138.0,0.87717]
[1759138140769,0.8919,4137.5,4137.4,1.19613]
[1759138142267,0.8919,4137.5,4137.4,0.43493]
[1759138143171,1.08504649,4137.5,4137.4,0.43493]
[1759138143368,0.8919,4137.5,4137.4,0.43493]
[1759138143564,0.8919,4137.5,4137.4,0.65183]
[1759138143764,0.8919,4137.5,4137.4,0.97073]
[1759138144466,0.8919,4137.5,4137.4,1.19613]
[1759138145164,0.3367,4137.8,4137.5,0.56052]
[1759138145370,0.5531,4137.8,4137.7,1.1961]
[1759138146580,0.2164,4137.8,4137.7,1.1961]
[1759138147376,0.5531,4137.8,4137.7,1.1961]
[1759138147968,0.7625,4137.8,4137.7,1.1961]
[1759138148666,3.7609,4138.1,4138.0,1.19608]
[1759138149175,3.9703,4138.1,4138.0,1.19608]
[1759138150574,0.7625,4138.1,4138.0,1.19608]
[1759138151671,0.7625,4138.1,4138.0,0.43488]
[1759138152066,1.0085,4138.1,4138.0,0.43488]
[1759138152871,1.0085,4138.1,4137.5,0.1256]
[1759138152872,0.4352,4137.6,4137.5,1.30184448]
[1759138153179,0.8947,4137.5,4137.4,1.95638448]
[1759138154180,0.8947,4137.5,4137.4,0.65454]
[1759138155175,0.8947,4137.5,4137.4,0.43494]
[1759138155373,1.36860981,4137.5,4137.4,0.43494]
[1759138156081,0.7669,4137.5,4137.4,1.19114]
[1759138156278,0.5562,4137.5,4137.4,1.19114]
[1759138156583,0.8947,4137.5,4137.4,0.43494]
[1759138159087,1.1407,4137.5,4137.4,0.43494]
[1759138160387,1.61453873,4137.5,4137.4,0.43494]
[1759138160878,7.04946873,4137.5,4137.4,0.43494]
[1759138161085,1.20184,4137.4,4137.3,0.43495]
[1759138161277,1.67567873,4137.4,4137.3,0.43495]
[1759138161881,0.7669,4136.8,4136.7,0.2196]
[1759138162084,0.7669,4136.8,4136.7,0.65461]
[1759138162587,0.7669,4136.8,4136.7,0.97601]
[1759138162989,0.7669,4136.8,4136.7,0.65461]
[1759138163478,0.7669,4136.8,4136.7,1.19121]
[1759138164786,0.7669,4136.8,4136.7,0.86981]
[1759138167797,0.459,4136.9,4136.8,0.64821]
[1759138168100,0.6824,4136.9,4136.8,0.64821]
[1759138168401,0.9996,4136.9,4136.8,0.64821]
[1759138169495,0.9996,4136.9,4136.8,0.97731]
[1759138170697,1.43459,4136.9,4136.8,0.64821]
[1759138170898,0.9996,4136.9,4136.8,0.64821]
[1759138171096,1.43459,4136.9,4136.8,0.43501]
[1759138171396,1.18861,4136.8,4136.7,0.43501]
[1759138171797,1.18861,4136.8,4136.7,0.85231]
[1759138171798,0.7536,4136.8,4136.7,0.85231]
[1759138172097,0.7536,4136.8,4136.7,1.18141]
[1759138175002,0.9986,4136.8,4136.7,1.18141]
[1759138176204,0.3512,4137.5,4137.4,0.43494]
[1759138176390,0.9986,4137.5,4137.4,1.18134]
[1759138177098,1.1216,4137.5,4137.4,1.18134]
[1759138178002,1.55653,4137.5,4137.4,1.18134]
[1759138178303,1.55653,4137.5,4137.4,0.64814]
[1759138178602,1.18856,4137.3,4137.2,0.43496]
[1759138179396,1.18856,4137.2,4137.1,0.43496]
[1759138179596,0.9986,4137.2,4137.1,0.43496]
[1759138179796,1.43356,4137.2,4137.1,0.43496]
[1759138180203,0.9986,4137.2,4137.1,0.43496]
[1759138180803,1.43356,4137.2,4137.1,0.43496]
[1759138181003,0.9986,4137.2,4137.1,0.43496]
[1759138181299,3.7484,4137.6,4137.5,1.18133]
[1759138181601,4.86994398,4137.6,4137.5,0.43493]
[1759138181804,5.11494398,4137.6,4137.5,0.43493]
[1759138182396,1.31154,4137.5,4137.4,0.64814]
[1759138182606,1.78516398,4137.5,4137.4,0.43494]
[1759138182806,1.18856,4137.3,4137.2,0.43496]
[1759138183005,1.90718398,4137.3,4137.2,0.43496]
[1759138183805,1.90718398,4137.3,4137.2,0.64816]
[1759138184807,1.90718398,4137.3,4137.2,0.43496]
[1759138185402,1.47222398,4137.3,4136.7,0.86753559]
[1759138185707,0.7536,4136.5,4136.4,1.18437312]
[1759138187001,0.245,4136.6,4136.5,0.97504]
[1759138187207,0.245,4136.6,4136.5,1.30414]
[1759138187403,3.2078,4137.1,4137.0,0.54]
[1759138187608,3.2078,4137.1,4137.0,1.30409]
[1759138187813,3.4528,4137.1,4137.0,1.30409]
[1759138189111,3.2078,4137.1,4137.0,1.30409]
[1759138189417,3.4528,4137.1,4137.0,1.30409]
[1759138189715,3.2078,4137.1,4137.0,1.30409]
[1759138189911,3.4528,4137.1,4137.0,1.30409]
[1759138190611,3.9934,4137.1,4137.0,1.30409]
[1759138191313,4.2064,4137.1,4137.0,1.18139]
[1759138191814,3.9614,4137.1,4137.0,1.18139]
[1759138192010,4.2064,4137.1,4137.0,0.85229]
[1759138192216,4.68312173,4137.1,4137.0,0.85229]
[1759138192515,4.68312173,4137.1,4137.0,1.18139]
[1759138192816,4.68312173,4137.1,4137.0,0.43499]
[1759138195212,5.11810173,4137.1,4137.0,0.43499]
[1759138195913,4.68312173,4137.1,4137.0,0.43499]
[1759138201416,4.43812173,4137.1,4137.0,0.43499]
[1759138201616,4.68312173,4137.1,4137.0,0.43499]
[1759138202819,0.5643,4136.5,4136.4,0.64977312]
[1759138203020,1.1254,4136.5,4136.4,0.64977312]
[1759138203221,1.1254,4136.5,4136.4,0.96017312]
[1759138204417,1.56044,4136.5,4136.4,0.43797312]
[1759138204618,2.03720719,4136.5,4136.4,0.00292312]
[1759138205315,1.79442193,4136.5,4136.4,0.43797312]
[1759138205712,2.22946193,4136.5,4136.4,0.43797312]
[1759138205913,0.5265,4135.8,4135.7,1.39074074]
[1759138206115,0.9953,4135.8,4135.7,1.82586074]
[1759138206319,0.9953,4135.8,4135.7,0.64692]
[1759138206725,0.9953,4135.8,4135.7,0.43512]
[1759138207016,1.47429471,4135.8,4135.7,0.43739788]
[1759138207622,1.90940471,4135.8,4135.7,0.43739788]
[1759138207921,0.3161,4135.1,4135.0,3.2078]
[1759138208122,0.00198729,4135.8,4135.5,0.8727]
[1759138208326,0.00198729,4135.8,4135.7,1.17532]
[1759138209124,0.00198729,4135.8,4135.7,1.17778415]
[1759138212231,0.00198729,4135.8,4135.7,6.17778415]
[1759138212826,0.75068729,4135.8,4135.7,1.17778415]
[1759138213028,0.75068729,4135.8,4135.7,0.64938415]
[1759138214723,0.32468729,4135.8,4135.7,1.18348415]
[1759138215029,0.53228729,4135.8,4135.7,1.18348415]
[1759138215236,0.75068729,4135.8,4135.7,1.18348415]
[1759138215424,0.75068729,4135.8,4135.7,0.86968415]
[1759138215630,0.75068729,4135.8,4135.7,0.43758415]
[1759138216031,0.75068729,4135.8,4135.7,0.97128415]
[1759138216226,0.75068729,4135.8,4135.7,1.19158415]
[1759138218028,0.75068729,4135.8,4135.7,0.87778415]
[1759138218331,0.75068729,4135.8,4135.7,1.19158415]
[1759138218530,0.20958729,4135.8,4135.7,1.19158415]
[1759138218723,0.00198729,4135.8,4135.7,1.19158415]
[1759138219028,0.00198729,4135.8,4135.7,6.19158415]
[1759138220232,0.20958729,4135.8,4135.7,1.19158415]
[1759138220435,0.00198729,4135.8,4135.7,1.19158415]
[1759138221132,0.53228729,4135.8,4135.7,1.19158415]
[1759138221430,0.00198729,4135.8,4135.7,1.19158415]
[1759138226036,0.72688729,4135.8,4135.7,1.19158415]
[1759138226534,0.72688729,4135.8,4135.7,0.65328415]
[1759138226739,0.72688729,4135.8,4135.7,1.18018415]
[1759138231842,0.00198729,4135.8,4135.7,1.18018415]
[1759138232042,0.00198729,4135.8,4135.7,2.48216036]
[1759138232338,0.00198729,4135.8,4135.7,1.18018415]
[1759138232639,0.00198729,4135.8,4135.7,2.48334393]
[1759138233038,0.72848729,4135.8,4135.7,1.18018415]
[1759138233438,0.72848729,4135.8,4135.7,0.00246415]
[1759138233738,1.20586106,4135.8,4135.7,0.00246415]
[1759138233938,6.64097106,4135.8,4135.7,0.00246415]
[1759138234930,0.2092,4134.9,4134.8,1.51893978]
[1759138235130,0.7265,4134.9,4134.8,0.65092]
[1759138235939,0.7265,4134.9,4134.8,1.18007625]
[1759138237440,0.7649,4135.0,4134.9,0.43521]
[1759138237748,0.7649,4135.0,4134.9,1.17781]
[1759138237943,0.5199,4135.0,4134.9,1.17781]
[1759138238642,0.7265,4135.0,4134.9,1.17781]
[1759138238841,0.8589,4135.0,4134.9,1.17781]
[1759138240942,1.2941,4135.0,4134.9,0.7426]
[1759138241145,1.2941,4135.0,4134.9,0.2157]
[1759138241340,0.85101,4134.9,4134.8,0.00225625]
[1759138241647,1.16171,4134.9,4134.8,0.00225625]
[1759138242147,1.16171,4134.9,4134.8,0.43747625]
[1759138242748,1.16171,4134.9,4134.8,0.00225625]
[1759138243449,0.7265,4134.9,4134.8,0.43747625]
[1759138243747,1.16171,4134.9,4134.8,0.43747625]
[1759138244549,1.16171,4134.9,4134.8,0.00225625]
[1759138245150,0.7265,4134.9,4134.8,1.18007625]
[1759138246651,0.245,4135.1,4135.0,0.4352]
[1759138246849,0.7649,4135.1,4135.0,1.1778]
[1759138247450,0.9715,4135.1,4135.0,1.1778]
[1759138248049,0.9715,4135.1,4135.0,0.7426]
[1759138248350,1.40669,4135.1,4135.0,0.4352]
[1759138248551,1.16171,4134.9,4134.8,0.00225625]
[1759138249843,6.64010558,4134.9,4134.8,0.00225625]
[1759138250347,0.43529,4134.2,4134.0,0.3173]
[1759138250548,1.40679,4134.1,4134.0,0.2157]
[1759138250749,1.16183,4133.8,4133.7,0.533]
[1759138250949,1.40683,4133.8,4133.7,0.2157]
[1759138251550,1.40683,4133.8,4133.7,0.21789725]
[1759138252348,1.40683,4133.8,4133.7,0.00219725]
[1759138254248,1.2053,4133.1,4133.0,0.2091]
[1759138254456,1.4503,4133.1,4133.0,0.2091]
[1759138254653,0.245,4133.1,4133.0,1.307]
[1759138254953,3.2078,4133.4,4133.3,1.17918]
[1759138255256,3.4163,4134.0,4133.9,1.17911]
[1759138255555,3.2078,4134.0,4133.9,1.17911]
[1759138258658,3.9777,4134.0,4133.9,1.17911]
[1759138258856,4.102,4134.0,4133.9,1.17911]
[1759138259457,3.9777,4134.0,4133.9,1.17911]
[1759138260655,0.7699,4134.0,4133.9,1.17911]
[1759138261055,0.8942,4134.0,4133.9,0.64441]
[1759138261762,0.8942,4134.0,4133.9,1.17911]
[1759138262863,0.8942,4134.0,4133.9,0.64441]
[1759138263757,1.1392,4134.0,4133.9,0.95441]
[1759138264062,4.347,4134.0,4133.9,0.64441]
[1759138264264,4.347,4134.0,4133.9,0.43531]
[1759138264861,4.7823,4134.0,4133.9,0.43531]
[1759138266362,0.2085,4133.4,4133.3,0.00205127]
[1759138266558,1.0149,4133.4,4133.3,0.43743127]
[1759138268065,4.2227,4133.4,4133.3,0.43743127]
[1759138269163,4.65807,4133.4,4133.3,0.43743127]
[1759138269464,4.2227,4133.4,4133.3,0.43743127]
[1759138271970,4.65807,4133.4,4133.3,0.43743127]
[1759138272369,4.65807,4133.4,4133.3,0.00205127]
[1759138272965,5.13692692,4133.4,4133.3,0.00205127]
[1759138273272,1.32941,4133.0,4132.9,0.02419638]
[1759138273473,1.57441,4133.0,4132.9,0.02419638]
[1759138274067,1.57441,4133.0,4132.9,0.02682722]
[1759138274271,1.57441,4133.0,4132.9,0.46224722]
[1759138274572,1.139,4133.0,4132.9,0.46224722]
[1759138274765,1.57441,4133.0,4132.9,0.46224722]
[1759138274965,1.139,4133.0,4132.9,0.46224722]
[1759138275166,0.219,4133.3,4133.2,0.4418]
[1759138275369,0.464,4133.3,4133.2,1.19789]
[1759138275763,0.7911,4133.3,4133.2,1.19789]
[1759138276961,1.009,4133.3,4133.2,1.19789]
[1759138277377,1.44438,4133.3,4133.2,1.19789]
[1759138277873,1.44438,4133.3,4133.2,0.87719]
[1759138278269,1.44438,4133.3,4133.2,0.43539]
[1759138279178,1.32941,4133.0,4132.9,0.02682722]
[1759138279381,1.57441,4133.0,4132.9,0.02682722]
[1759138279979,1.57441,4133.0,4132.9,0.46224722]
[1759138280877,1.57441,4133.0,4132.9,0.02682722]
[1759138282982,2.05376574,4133.0,4132.9,0.02682722]
[1759138288180,1.57441,4133.0,4132.9,0.68794722]
[1759138288382,1.139,4133.0,4132.9,1.02724722]
[1759138288687,0.764,4133.0,4132.9,1.24334722]
[1759138288880,3.9702,4133.4,4133.3,1.21648]
[1759138289278,4.2152,4133.4,4133.3,1.21648]
[1759138292088,4.65057,4133.4,4133.3,1.21648]
[1759138292691,4.40557,4133.4,4133.3,1.21648]
[1759138292988,4.65057,4133.4,4133.3,1.21648]
[1759138293185,5.13024904,4133.4,4133.3,1.21648]
[1759138293390,5.13024904,4133.4,4133.3,0.43538]
[1759138293786,5.13024904,4133.4,4132.9,0.46224722]
[1759138293787,1.33161,4133.0,4132.9,0.02682722]
[1759138293991,1.19784,4132.7,4132.6,0.66115]
[1759138294291,1.0074,4132.7,4132.6,0.66115]
[1759138294991,1.00927182,4132.7,4132.6,0.66425082]
[1759138295386,1.00927182,4132.7,4132.6,1.00355082]
[1759138295690,1.00927182,4132.7,4132.6,1.21965082]
[1759138297993,1.44471182,4132.7,4132.6,1.21965082]
[1759138298193,1.44471182,4132.7,4132.6,0.88035082]
[1759138298391,1.00927182,4132.7,4132.6,0.88035082]
[1759138298894,1.00927182,4132.7,4132.6,0.66425082]
[1759138299194,1.44471182,4132.7,4132.6,0.66425082]
[1759138299396,1.00927182,4132.7,4132.6,1.21965082]
[1759138300488,1.44471182,4132.7,4132.6,1.21965082]
[1759138300696,1.44471182,4132.7,4132.6,0.88035082]
[1759138300892,1.00927182,4132.7,4132.6,0.88035082]
[1759138301089,1.44471182,4132.7,4132.6,0.88035082]
[1759138301595,5.13274772,4132.7,4132.6,0.00310082]
[1759138302495,5.13274772,4132.7,4132.6,0.43855082]
[1759138302692,5.13274772,4132.7,4132.6,0.00310082]
[1759138303798,0.87363,4131.9,4131.8,0.43553]
[1759138303998,4.65073,4131.9,4131.8,0.43242918]
[1759138304901,4.2152,4131.9,4131.8,0.43481356]
[1759138305302,4.2152,4131.9,4131.8,0.66051356]
[1759138305503,4.65072,4131.9,4131.8,0.66051356]
[1759138305809,4.65072,4131.9,4131.8,0.43481356]
[1759138306309,4.65072,4131.9,4131.8,0.00238438]
[1759138306504,5.13067243,4131.9,4131.8,0.00238438]
[1759138306708,4.69515243,4131.9,4131.8,0.43791438]
[1759138307009,3.4528,4131.9,4131.8,1.21901438]
[1759138307199,3.2078,4131.9,4131.8,6.21901438]
[1759138308705,3.2078,4131.9,4131.8,7.51836855]
[1759138309001,0.245,4132.3,4132.2,1.21659]
[1759138309205,0.5415,4132.6,4132.5,0.43546]
[1759138309407,0.7865,4132.6,4132.5,1.21656]
[1759138309809,1.0074,4132.6,4132.5,1.21656]
[1759138311015,0.2172,4132.6,4132.5,1.34616]
[1759138311214,0.4622,4132.6,4132.5,1.34616]
[1759138311506,0.24687182,4132.7,4132.6,0.7811]
[1759138312208,0.46407182,4132.7,4132.6,0.7811]
[1759138313516,0.46407182,4132.7,4132.6,1.21655]
[1759138313709,0.21907182,4132.7,4132.6,1.21655]
[1759138314018,0.76337182,4132.7,4132.6,1.21655]
[1759138318115,0.76337182,4132.7,4132.6,0.43545]
[1759138318313,0.3378,4132.6,4132.5,0.43546]
[1759138318512,1.18945,4132.6,4132.5,0.43546]
[1759138319312,0.754,4132.6,4132.5,0.43546]
[1759138320623,0.754,4132.6,4132.5,0.66006]
[1759138320919,1.18945,4132.6,4132.5,0.66006]
[1759138321420,1.18945,4132.6,4132.5,0.43546]
[1759138321817,0.754,4132.6,4132.5,0.43546]
[1759138322318,0.754,4132.6,4132.5,0.66006]
[1759138323512,1.18945,4132.6,4132.5,0.66006]
[1759138324114,0.98227,4132.5,4132.4,0.43547]
[1759138324417,1.1895,4132.3,4132.2,0.43548]
[1759138324615,0.8846,4132.0,4131.9,0.66012]
[1759138325618,0.8846,4132.0,4131.9,0.66244372]
[1759138327422,1.32011,4132.0,4131.9,0.66244372]
[1759138327717,1.32011,4132.0,4131.9,0.00232372]
[1759138328019,1.80141852,4132.0,4131.9,0.00232372]
[1759138331219,1.36590852,4132.0,4131.9,0.66244372]
[1759138331416,1.36590852,4132.0,4131.9,1.15514372]
[1759138331621,0.3378,4132.0,4131.9,1.15514372]
[1759138332116,3.2078,4132.2,4132.1,0.8842]
[1759138332316,3.4528,4132.2,4132.1,1.1528]
[1759138332718,3.2078,4132.2,4132.1,1.1528]
[1759138332925,0.00187182,4132.7,4132.6,0.4158]
[1759138332926,0.21437182,4132.7,4132.6,0.4158]
[1759138333114,0.53117182,4132.7,4132.6,1.12065]
[1759138333314,0.56367182,4132.7,4132.6,1.12065]
[1759138333628,0.00187182,4132.7,4132.6,6.12065]
[1759138335022,0.00187182,4132.7,4132.6,9.32845]
[1759138335828,0.00187182,4132.7,4132.6,1.12065]
[1759138335829,0.53117182,4132.7,4132.6,1.12065]
[1759138336522,0.53117182,4132.7,4132.6,0.85125]
[1759138336719,0.99527182,4132.7,4132.6,0.64055]
[1759138336925,0.99527182,4132.7,4132.6,0.43545]
[1759138337731,0.99527182,4132.7,4132.3,1.08871]
[1759138337732,0.99527182,4132.7,4132.5,0.43545]
[1759138337924,0.7484,4132.6,4132.5,0.43545]
[1759138338227,1.18385,4132.6,4132.5,0.43545]
[1759138340431,1.30957,4132.5,4132.4,0.43547]
[1759138341023,0.8741,4132.0,4131.9,0.41812372]
[1759138341930,0.8741,4132.0,4131.9,0.85364372]
[1759138344232,0.8741,4132.0,4131.9,0.43784372]
[1759138345133,1.30961,4132.0,4131.9,0.43784372]
[1759138345430,0.8741,4132.0,4131.9,0.43784372]
[1759138345939,0.8741,4132.0,4131.9,0.87574372]
[1759138347325,0.8741,4132.0,4131.9,1.14524372]
[1759138347533,0.8741,4132.0,4131.9,0.87574372]
[1759138351328,1.30961,4132.0,4131.9,0.00232372]
[1759138351526,1.79045335,4132.0,4131.9,0.00232372]
[1759138353037,1.20529,4131.3,4131.2,0.4356]
[1759138353336,1.2053,4131.2,4131.1,0.43561]
[1759138353736,0.7697,4131.2,4131.1,0.43561]
[1759138354237,0.7697,4131.2,4131.1,0.65722909]
[1759138354933,0.7697,4131.2,4131.1,0.87602909]
[1759138355325,0.1257,4132.0,4131.5,1.08892]
[1759138355530,0.4354,4132.0,4131.9,1.19102]
[1759138355727,0.6804,4132.0,4131.9,1.19102]
[1759138355930,0.4354,4132.0,4131.9,1.19102]
[1759138356238,0.6804,4132.0,4131.9,1.19102]
[1759138357334,0.4558,4132.0,4131.9,1.19102]
[1759138359040,0.4558,4132.0,4131.9,1.19022]
[1759138360538,3.2078,4132.6,4132.5,1.31706]
[1759138362728,3.4186,4132.6,4132.5,1.31706]
[1759138362935,3.4186,4132.6,4132.5,0.8816]